bitfinex-derivatives/quotes_BTCF0:USTF0_20250510
["timestamp","ask_amount","ask_price","bid_price","bid_amount"]
[1746844685424,0.6489745,103240.0,103230.0,0.85991665]
[1746844686923,1.09294205,103240.0,103230.0,0.34555755]
[1746844687119,1.09294205,103240.0,103230.0,0.51991665]
[1746844687425,1.0219745,103240.0,103230.0,0.51991665]
[1746844687815,1.09294205,103240.0,103230.0,0.51991665]
[1746844688423,1.0219745,103240.0,103230.0,0.51991665]
[1746844690922,0.64100695,103240.0,103230.0,0.51991665]
[1746844691122,0.7119745,103240.0,103230.0,0.51991665]
[1746844691924,0.7119745,103240.0,103230.0,0.72991665]
[1746844695428,0.78294205,103240.0,103230.0,0.72978404]
[1746844696525,0.7119745,103240.0,103230.0,0.72978404]
[1746844704626,0.78294205,103240.0,103230.0,0.42886494]
[1746844704835,1.10294205,103240.0,103230.0,0.27052494]
[1746844705127,1.23022205,103240.0,103230.0,0.27052494]
[1746844705628,1.23022205,103240.0,103230.0,0.25559641]
[1746844706932,1.23222205,103240.0,103230.0,0.25559641]
[1746844707536,1.23222205,103240.0,103230.0,0.15873004]
[1746844707834,0.1743591,103230.0,103220.0,0.3064017]
[1746844708033,1.02102665,103230.0,103220.0,0.35191937]
[1746844708333,1.21942665,103230.0,103220.0,0.43386807]
[1746844708932,1.22042665,103230.0,103220.0,0.43386807]
[1746844709123,1.22042665,103230.0,103220.0,0.28662637]
[1746844710534,1.22142665,103230.0,103220.0,0.28662637]
[1746844711531,1.23092135,103230.0,103220.0,0.28662637]
[1746844712834,1.22142665,103230.0,103220.0,0.28662637]
[1746844713140,1.58222665,103230.0,103220.0,0.28662637]
[1746844713320,1.58422665,103230.0,103220.0,0.28662637]
[1746844714723,1.29422665,103230.0,103220.0,0.31792637]
[1746844716136,1.30248665,103230.0,103220.0,0.31792637]
[1746844718237,1.30248665,103230.0,103220.0,0.33282379]
[1746844718439,1.57248665,103230.0,103220.0,0.33282379]
[1746844719337,1.32248665,103230.0,103220.0,0.33282379]
[1746844719635,0.96168665,103230.0,103220.0,0.33282379]
[1746844719829,1.32248665,103230.0,103220.0,0.33282379]
[1746844720335,1.32248665,103230.0,103220.0,0.33282347]
[1746844720934,1.32248665,103230.0,103220.0,0.31792637]
[1746844722237,0.60088665,103230.0,103220.0,0.31792637]
[1746844722439,1.32248665,103230.0,103220.0,0.33282389]
[1746844722827,1.32248665,103230.0,103220.0,0.31792637]
[1746844724742,1.0742191,103230.0,103220.0,0.79230237]
[1746844725038,1.14518665,103230.0,103220.0,0.80719999]
[1746844725637,1.14218665,103230.0,103220.0,0.80719999]
[1746844725840,1.14418665,103230.0,103220.0,0.80720053]
[1746844727439,1.14318665,103230.0,103220.0,0.80720053]
[1746844727639,1.14118665,103230.0,103220.0,0.80720053]
[1746844727839,1.14218665,103230.0,103220.0,0.80720053]
[1746844729842,1.0712191,103230.0,103220.0,0.80720053]
[1746844730134,0.9052191,103230.0,103220.0,0.80720053]
[1746844730439,0.97618665,103230.0,103220.0,0.80720053]
[1746844731138,1.14218665,103230.0,103220.0,0.80720053]
[1746844731339,1.14118665,103230.0,103220.0,0.80820053]
[1746844731540,1.14018665,103230.0,103220.0,0.80920053]
[1746844732239,0.17326,103230.0,103220.0,0.88016808]
[1746844732744,0.3476191,103230.0,103220.0,0.88017498]
[1746844732930,0.3476191,103230.0,103220.0,0.80920743]
[1746844735444,0.41858665,103230.0,103220.0,0.80920743]
[1746844737549,0.41858665,103230.0,103220.0,0.80920155]
[1746844738245,0.41858665,103230.0,103220.0,0.68184155]
[1746844738446,0.77938665,103230.0,103220.0,0.93500155]
[1746844738848,0.77938665,103230.0,103220.0,0.80884155]
[1746844739239,0.81048665,103230.0,103220.0,0.80884155]
[1746844739442,0.84278665,103230.0,103220.0,0.80884155]
[1746844740048,0.7718191,103230.0,103220.0,0.80884155]
[1746844740244,0.17326,103230.0,103220.0,1.31157665]
[1746844741251,0.00726,103230.0,103220.0,1.31157665]
[1746844741648,0.00726,103230.0,103220.0,1.2396091]
[1746844741847,0.00726,103230.0,103220.0,1.2416091]
[1746844742154,0.00726,103230.0,103220.0,1.31457665]
[1746844742755,0.00726,103230.0,103220.0,1.65814062]
[1746844743253,0.00726,103230.0,103220.0,1.65812142]
[1746844743445,0.00726,103230.0,103220.0,1.58715387]
[1746844743753,0.00726,103230.0,103220.0,1.58615387]
[1746844744253,0.1743265,103250.0,103240.0,0.26149]
[1746844744447,0.1743265,103250.0,103240.0,0.87928998]
[1746844744748,0.2054265,103250.0,103240.0,0.97278998]
[1746844744945,0.27639405,103250.0,103240.0,0.77315786]
[1746844745145,0.47419405,103250.0,103240.0,1.02623786]
[1746844745547,0.47519405,103250.0,103240.0,1.02623786]
[1746844746750,0.47619405,103250.0,103240.0,1.0262297]
[1746844746956,0.4052265,103250.0,103240.0,1.0262297]
[1746844747252,0.47519405,103250.0,103240.0,1.0272297]
[1746844748153,0.47419405,103250.0,103240.0,1.0272297]
[1746844748357,0.47419405,103250.0,103240.0,1.0282297]
[1746844748656,0.3403265,103250.0,103240.0,1.0282247]
[1746844750356,0.41129405,103250.0,103240.0,1.0282247]
[1746844750558,0.44369405,103250.0,103240.0,1.0282247]
[1746844752260,0.44369405,103250.0,103240.0,0.8575228]
[1746844752261,0.80449405,103250.0,103240.0,0.8575228]
[1746844752557,0.80449405,103250.0,103240.0,0.7234428]
[1746844752754,0.86599405,103250.0,103240.0,0.7234428]
[1746844753157,0.86599405,103250.0,103240.0,0.7234028]
[1746844753350,0.86599405,103250.0,103240.0,0.9634028]
[1746844753959,0.86599405,103250.0,103240.0,0.96340342]
[1746844755761,0.7950265,103250.0,103240.0,0.96340342]
[1746844756063,0.86599405,103250.0,103240.0,0.96340342]
[1746844757459,0.5268,103250.0,103240.0,0.96340342]
[1746844757764,0.7011254,103250.0,103240.0,1.03437097]
[1746844758062,0.7011254,103250.0,103240.0,0.96340342]
[1746844765959,0.7011254,103250.0,103240.0,0.94854115]
[1746844766159,0.7011254,103250.0,103240.0,0.96343183]
[1746844767764,0.77209295,103250.0,103240.0,0.96343183]
[1746844767971,0.77209295,103250.0,103240.0,0.94343183]
[1746844768159,0.7329254,103250.0,103240.0,0.94343183]
[1746844768663,0.7329254,103250.0,103240.0,0.94344242]
[1746844768965,0.7631254,103250.0,103240.0,0.94344242]
[1746844769157,0.7946254,103250.0,103240.0,0.94344242]
[1746844770374,0.7946254,103250.0,103240.0,0.94345229]
[1746844771861,0.8018854,103250.0,103240.0,0.94345229]
[1746844773170,0.87285295,103250.0,103240.0,0.94345229]
[1746844776170,0.8018854,103250.0,103240.0,0.94345229]
[1746844777973,0.7083854,103250.0,103240.0,0.94345229]
[1746844778975,0.53406,103250.0,103240.0,1.01441984]
[1746844779172,0.3475854,103250.0,103240.0,1.01441984]
[1746844779581,0.3475854,103250.0,103240.0,1.01442307]
[1746844781479,0.3475854,103250.0,103240.0,1.16166477]
[1746844783080,0.3475854,103250.0,103240.0,1.1467504]
[1746844783285,0.3475854,103250.0,103240.0,1.1616624]
[1746844786882,0.3475854,103250.0,103240.0,1.1467504]
[1746844787185,0.3475854,103250.0,103240.0,1.16166137]
[1746844787575,0.3475854,103250.0,103240.0,1.09069382]
[1746844787775,0.3475854,103250.0,103240.0,1.16166137]
[1746844788072,0.3475854,103250.0,103240.0,1.09069382]
[1746844788274,0.3475854,103250.0,103240.0,1.16166137]
[1746844788574,0.3475854,103250.0,103240.0,1.16166096]
[1746844791087,0.3803854,103250.0,103240.0,1.16166096]
[1746844794187,0.3475854,103250.0,103240.0,1.16166096]
[1746844795876,0.3475854,103250.0,103240.0,1.16166064]
[1746844796992,0.3403254,103250.0,103240.0,1.16166064]
[1746844797192,0.3403254,103250.0,103240.0,1.01441894]
[1746844797690,0.3403254,103250.0,103240.0,0.94345139]
[1746844800295,0.3475854,103250.0,103240.0,0.94345139]
[1746844800888,0.3475854,103250.0,103240.0,0.94345153]
[1746844801793,0.3475854,103250.0,103240.0,1.01441908]
[1746844802894,0.3475854,103250.0,103240.0,1.01441976]
[1746844803994,0.17326,103250.0,103240.0,1.01441976]
[1746844804188,0.3475854,103250.0,103240.0,1.01441976]
[1746844805790,0.3475854,103250.0,103240.0,0.9995087]
[1746844806096,0.3475854,103250.0,103240.0,1.01442057]
[1746844807295,0.3475854,103250.0,103240.0,1.16166227]
[1746844807796,0.3475854,103250.0,103240.0,1.1616639]
[1746844811297,0.3475854,103250.0,103240.0,1.1467504]
[1746844811487,0.3475854,103250.0,103240.0,1.16166867]
[1746844812704,0.3475854,103250.0,103240.0,1.09070112]
[1746844813108,0.3475854,103250.0,103240.0,1.16166867]
[1746844818407,0.3475854,103250.0,103240.0,1.09070112]
[1746844818605,0.3475854,103250.0,103240.0,1.16166867]
[1746844821109,0.53587723,103280.0,103240.0,1.83693437]
[1746844821301,0.63157123,103280.0,103270.0,0.1742916]
[1746844821612,0.63157123,103280.0,103270.0,0.76700987]
[1746844821813,0.70253878,103280.0,103270.0,0.86320987]
[1746844822009,0.70253878,103280.0,103270.0,0.87291431]
[1746844822213,0.86853878,103280.0,103270.0,0.9697713]
[1746844822414,0.80157123,103280.0,103270.0,0.96974495]
[1746844822616,0.62729653,103280.0,103270.0,1.0407125]
[1746844823010,0.79757123,103280.0,103270.0,0.97074495]
[1746844823210,0.79757123,103280.0,103270.0,1.0417125]
[1746844824115,0.79757123,103280.0,103270.0,1.04169994]
[1746844826016,0.79757123,103280.0,103270.0,1.05645283]
[1746844826712,0.86853878,103280.0,103270.0,0.53249368]
[1746844826913,0.93950633,103280.0,103270.0,0.27719368]
[1746844827121,1.03950633,103280.0,103270.0,0.27719368]
[1746844827619,1.03950633,103280.0,103270.0,0.27718918]
[1746844827920,1.03950633,103280.0,103270.0,0.45148078]
[1746844828121,0.96853878,103280.0,103270.0,0.48348078]
[1746844828320,0.96853878,103280.0,103270.0,0.30918918]
[1746844828716,0.96853878,103280.0,103270.0,0.48348078]
[1746844829521,0.96853878,103280.0,103270.0,0.47377634]
[1746844832425,0.89757123,103280.0,103270.0,0.47377634]
[1746844832724,0.96853878,103280.0,103270.0,0.45890148]
[1746844835824,0.96853878,103280.0,103270.0,0.28460988]
[1746844837129,0.96853878,103280.0,103270.0,0.45890148]
[1746844837830,0.96853878,103280.0,103270.0,0.29948559]
[1746844838031,0.86853878,103280.0,103270.0,0.29948559]
[1746844838631,0.93950633,103280.0,103270.0,0.29948559]
[1746844839634,0.1743423,103240.0,103230.0,0.48434569]
[1746844839828,0.5351423,103240.0,103230.0,1.00829067]
[1746844840030,0.5351423,103240.0,103230.0,1.0181588]
[1746844840332,0.7940423,103240.0,103230.0,1.11502517]
[1746844840932,0.7950423,103240.0,103230.0,0.99934517]
[1746844841232,0.7950423,103240.0,103230.0,1.13002517]
[1746844841730,0.7950423,103240.0,103230.0,1.13002385]
[1746844841933,0.7950423,103240.0,103230.0,1.12302385]
[1746844842232,0.7950423,103240.0,103230.0,1.12802385]
[1746844842427,0.7950423,103240.0,103230.0,1.14275219]
[1746844842734,0.7940423,103240.0,103230.0,1.14075219]
[1746844843241,0.7940423,103240.0,103230.0,0.79718822]
[1746844843538,0.7940423,103240.0,103230.0,0.79318822]
[1746844843736,0.7940423,103240.0,103230.0,0.7720865]
[1746844844231,0.7625423,103240.0,103230.0,0.7720865]
[1746844844437,0.7011423,103240.0,103230.0,0.84305405]
[1746844845436,0.7011423,103240.0,103230.0,0.84304743]
[1746844846140,0.7011423,103240.0,103230.0,0.77207988]
[1746844846435,0.7011423,103240.0,103230.0,0.84304743]
[1746844847029,0.7011423,103240.0,103230.0,0.84304615]
[1746844847231,0.7084023,103240.0,103230.0,0.84304615]
[1746844847539,0.7084023,103240.0,103230.0,0.7720786]
[1746844850542,0.7084023,103240.0,103230.0,0.75720194]
[1746844850845,0.7084023,103240.0,103230.0,0.77207323]
[1746844854039,0.77936985,103240.0,103230.0,0.587846]
[1746844854239,0.84086985,103240.0,103230.0,0.34784729]
[1746844854543,0.87186985,103240.0,103230.0,0.34784729]
[1746844855044,1.2697054,103240.0,103230.0,0.16236729]
[1746844855243,1.2697054,103240.0,103230.0,0.05062834]
[1746844855445,1.3938254,103240.0,103230.0,0.05062834]
[1746844857344,1.1638254,103240.0,103230.0,0.05062834]
[1746844857546,1.0669574,103240.0,103230.0,0.05062834]
[1746844859246,1.0596974,103240.0,103230.0,0.05062834]
[1746844860544,1.1196974,103240.0,103230.0,0.05062834]
[1746844862451,1.1269574,103240.0,103230.0,0.05062834]
[1746844864048,1.1269574,103240.0,103230.0,0.08222834]
[1746844864844,1.1289574,103240.0,103230.0,0.08122834]
[1746844865149,1.1299574,103240.0,103230.0,0.07922834]
[1746844869048,1.1299574,103240.0,103230.0,0.09413226]
[1746844871152,1.1299574,103240.0,103230.0,0.07922834]
[1746844871455,1.1299574,103240.0,103230.0,0.09413216]
[1746844872256,1.1299574,103240.0,103230.0,0.07922834]
[1746844874258,1.1299574,103240.0,103230.0,0.09413333]
[1746844877462,0.93486985,103240.0,103230.0,0.3965588]
[1746844877664,0.93486985,103240.0,103230.0,0.2221997]
[1746844877857,0.93486985,103240.0,103230.0,0.3965588]
[1746844878261,0.93486985,103240.0,103230.0,0.39656137]
[1746844878460,0.84236985,103240.0,103230.0,0.22220227]
[1746844878862,0.81546985,103240.0,103230.0,0.22220227]
[1746844880062,0.81546985,103240.0,103230.0,0.22220439]
[1746844881762,0.81546985,103240.0,103230.0,0.22221018]
[1746844885453,0.81546985,103240.0,103230.0,0.22222876]
[1746844888959,0.81546985,103240.0,103230.0,0.20729471]
[1746844889157,0.81546985,103240.0,103230.0,0.22222942]
[1746844890263,0.45466985,103240.0,103230.0,0.22222942]
[1746844890460,1.17626985,103240.0,103230.0,0.22222942]
[1746844890660,1.17626985,103240.0,103230.0,0.26222942]
[1746844892670,1.17626985,103240.0,103230.0,0.43222942]
[1746844894266,1.23916985,103240.0,103230.0,0.43222934]
[1746844897866,1.23916985,103240.0,103230.0,0.4320975]
[1746844898368,1.1682023,103240.0,103230.0,0.4320975]
[1746844898569,1.23916985,103240.0,103230.0,0.4320975]
[1746844901370,1.23916985,103240.0,103230.0,0.43210168]
[1746844901870,1.0722023,103240.0,103230.0,0.74646073]
[1746844902168,1.0722023,103240.0,103230.0,0.57210163]
[1746844902375,1.0722023,103240.0,103230.0,0.74646073]
[1746844903374,1.0722023,103240.0,103230.0,0.52646073]
[1746844903566,1.14316985,103240.0,103230.0,0.52646073]
[1746844903762,1.14316985,103240.0,103230.0,0.76646073]
[1746844904067,1.0722023,103240.0,103230.0,0.88814073]
[1746844904265,1.14316985,103240.0,103230.0,0.88814073]
[1746844904464,1.17476985,103240.0,103230.0,0.88814073]
[1746844904875,1.17476985,103240.0,103230.0,0.8881408]
[1746844905770,1.17476985,103240.0,103230.0,0.6881408]
[1746844906074,1.14316985,103240.0,103230.0,0.6881408]
[1746844906675,1.0722023,103240.0,103230.0,0.8481408]
[1746844906981,1.0722023,103240.0,103230.0,0.91910835]
[1746844907276,0.9062023,103240.0,103230.0,1.08510835]
[1746844908272,0.9052023,103240.0,103230.0,0.91910835]
[1746844909071,0.9032023,103240.0,103230.0,0.92110835]
[1746844910576,0.9032023,103240.0,103230.0,1.07035005]
[1746844912079,0.9032023,103240.0,103230.0,0.9993825]
[1746844912279,0.9032023,103240.0,103230.0,1.07035005]
[1746844915478,0.9032023,103240.0,103230.0,1.05554306]
[1746844915687,0.9032023,103240.0,103230.0,1.07031396]
[1746844917279,0.9032023,103240.0,103230.0,1.07031176]
[1746844918388,0.1816023,103240.0,103230.0,1.07031176]
[1746844920790,0.1816023,103240.0,103230.0,1.07030926]
[1746844921180,0.1816023,103240.0,103230.0,0.94862926]
[1746844921481,0.1816023,103240.0,103230.0,1.19146926]
[1746844922189,0.41856985,103240.0,103230.0,1.12050171]
[1746844922375,0.4135023,103240.0,103230.0,1.12050171]
[1746844922580,0.4135023,103240.0,103230.0,1.12050167]
[1746844922995,0.7743023,103240.0,103230.0,1.12050167]
[1746844925089,0.8067023,103240.0,103230.0,1.12050167]
[1746844925893,0.4459023,103240.0,103230.0,1.12050167]
[1746844926090,0.4459023,103240.0,103230.0,1.19146922]
[1746844927292,0.4459023,103240.0,103230.0,1.19147214]
[1746844927793,0.17326,103240.0,103230.0,1.19147214]
[1746844927994,0.3476023,103240.0,103230.0,1.19147214]
[1746844928195,0.00726,103240.0,103230.0,1.19147214]
[1746844928502,0.1816023,103240.0,103230.0,1.19147214]
[1746844928796,0.1816023,103240.0,103230.0,1.04423044]
[1746844928984,0.1816023,103240.0,103230.0,1.02946136]
[1746844929294,0.00726,103240.0,103230.0,1.40503123]
[1746844933296,0.00726,103240.0,103230.0,1.7485952]
[1746844933601,0.00726,103240.0,103230.0,1.81956275]
[1746844934194,0.00726,103240.0,103230.0,1.98556275]
[1746844934399,0.00726,103240.0,103230.0,1.98556517]
[1746844934896,0.00726,103240.0,103230.0,1.91459762]
[1746844935099,0.00726,103240.0,103230.0,1.74859762]
[1746844935500,0.00726,103240.0,103230.0,1.50575762]
[1746844935794,0.00726,103240.0,103230.0,1.74807762]
[1746844937099,0.00726,103240.0,103230.0,1.60083592]
[1746844939803,0.00726,103240.0,103230.0,1.60084039]
[1746844942801,0.00726,103240.0,103230.0,1.52987284]
[1746844943199,0.00726,103240.0,103230.0,1.60084039]
[1746844943903,0.03776,103240.0,103230.0,1.60084039]
[1746844944112,0.20376,103240.0,103230.0,1.60084039]
[1746844945304,0.3781023,103240.0,103230.0,1.28755284]
[1746844945504,0.3781023,103240.0,103230.0,1.52999284]
[1746844945709,0.4397023,103240.0,103230.0,1.60096039]
[1746844946910,0.4397023,103240.0,103230.0,1.60095815]
[1746844947510,0.4397023,103240.0,103230.0,2.76067815]
[1746844949214,0.26536,103240.0,103230.0,2.76067815]
[1746844949712,0.4397023,103240.0,103230.0,2.76067815]
[1746844953421,0.4397023,103240.0,103230.0,2.51823815]
[1746844953616,0.4397023,103240.0,103230.0,2.6583906]
[1746844954313,0.4397023,103240.0,103230.0,2.65839576]
[1746844954518,0.4397023,103240.0,103230.0,2.69029576]
[1746844954915,0.4397023,103240.0,103230.0,2.69029713]
[1746844956113,0.4397023,103240.0,103230.0,2.93648931]
[1746844957320,0.4397023,103240.0,103230.0,2.81536931]
[1746844957617,0.4397023,103240.0,103230.0,3.00745686]
[1746844957815,0.4397023,103240.0,103230.0,3.00746234]
[1746844959120,0.4397023,103240.0,103230.0,2.76127185]
[1746844961020,0.4397023,103240.0,103230.0,2.51895185]
[1746844961220,0.4397023,103240.0,103230.0,2.76127185]
[1746844961421,0.4397023,103240.0,103230.0,2.76127222]
[1746844962028,0.4397023,103240.0,103230.0,2.76127132]
[1746844963122,0.4397023,103240.0,103230.0,2.76127066]
[1746844966425,0.4397023,103240.0,103230.0,2.71254947]
[1746844969129,0.17326,103240.0,103230.0,2.71254947]
[1746844969624,0.17326,103240.0,103230.0,2.78351702]
[1746844970219,0.00726,103240.0,103230.0,2.7835139]
[1746844970424,0.00726,103240.0,103230.0,2.71254635]
[1746844973028,0.00726,103240.0,103230.0,2.35174635]
[1746844973229,0.17326,103240.0,103230.0,2.76126754]
[1746844973726,0.17326,103240.0,103230.0,2.74648363]
[1746844974029,0.17326,103240.0,103230.0,2.76126878]
[1746844975128,0.00726,103240.0,103230.0,2.76126878]
[1746844978132,0.17326,103240.0,103230.0,2.76126878]
[1746844979233,0.17326,103240.0,103230.0,2.761135]
[1746844980832,0.17326,103240.0,103230.0,2.76113441]
[1746844982136,0.17326,103240.0,103230.0,2.76113403]
[1746844983735,0.3476023,103240.0,103230.0,2.51881403]
[1746844983924,0.3476023,103240.0,103230.0,2.6900462]
[1746844984128,0.4458023,103240.0,103230.0,2.76101375]
[1746844985334,0.4458023,103240.0,103230.0,2.51881375]
[1746844985531,0.4458023,103240.0,103230.0,2.76101375]
[1746844986639,0.4458023,103240.0,103230.0,2.76101506]
[1746844987140,0.4458023,103240.0,103230.0,2.69004751]
[1746844987330,0.4458023,103240.0,103230.0,2.76101506]
[1746844989442,0.4458023,103240.0,103230.0,2.69004751]
[1746844989740,0.4458023,103240.0,103230.0,2.76101506]
[1746844999946,0.4458023,103240.0,103230.0,2.76102176]
[1746845000147,0.4458023,103240.0,103230.0,2.69005421]
[1746845000348,0.4458023,103240.0,103230.0,2.76102176]
[1746845000647,0.5877374,103240.0,103230.0,1.97023511]
[1746845000848,0.51676985,103240.0,103230.0,2.14459421]
[1746845001753,0.51676985,103240.0,103230.0,2.1445933]
[1746845003452,0.51676985,103240.0,103230.0,2.12993608]
[1746845003753,0.51676985,103240.0,103230.0,2.14459207]
[1746845003956,0.51676985,103240.0,103230.0,0.78487207]
[1746845004354,0.51676985,103240.0,103230.0,0.73617508]
[1746845005251,0.51676985,103240.0,103230.0,0.72151909]
[1746845005457,0.51676985,103240.0,103230.0,0.7361716]
[1746845006250,0.87756985,103240.0,103230.0,0.9461716]
[1746845006446,0.87756985,103240.0,103230.0,0.6861716]
[1746845006648,0.87756985,103240.0,103230.0,0.7061716]
[1746845007056,0.87756985,103240.0,103230.0,0.70617033]
[1746845008158,1.0454054,103240.0,103230.0,0.41077123]
[1746845008351,1.4054054,103240.0,103230.0,0.27787123]
[1746845008552,1.1254054,103240.0,103230.0,0.27787123]
[1746845009157,1.1274054,103240.0,103230.0,0.27587123]
[1746845010559,1.05643785,103240.0,103230.0,0.30787123]
[1746845010859,1.1274054,103240.0,103230.0,0.30786127]
[1746845011158,1.05643785,103240.0,103230.0,0.30786127]
[1746845011351,1.1294054,103240.0,103230.0,0.30586127]
[1746845011857,1.1294054,103240.0,103230.0,0.15823599]
[1746845012262,1.05843785,103240.0,103230.0,0.15823599]
[1746845012456,1.1294054,103240.0,103230.0,0.15823599]
[1746845012656,1.05843785,103240.0,103230.0,0.15823599]
[1746845012854,1.1294054,103240.0,103230.0,0.15823599]
[1746845013559,1.0325374,103240.0,103230.0,0.15823599]
[1746845014960,0.96156985,103240.0,103230.0,0.15823599]
[1746845015458,1.0325374,103240.0,103230.0,0.15823599]
[1746845017358,1.3933374,103240.0,103230.0,0.15823599]
[1746845017858,1.3933374,103240.0,103230.0,0.14359471]
[1746845018059,1.3933374,103240.0,103230.0,0.19102697]
[1746845020466,1.3933374,103240.0,103230.0,0.36538607]
[1746845021659,1.3933374,103240.0,103230.0,0.3653864]
[1746845022269,1.3933374,103240.0,103230.0,0.36538655]
[1746845022570,1.3933374,103240.0,103230.0,0.33258655]
[1746845023066,1.3933374,103240.0,103230.0,0.36318655]
[1746845023765,1.3933374,103240.0,103230.0,0.36319089]
[1746845024669,1.3933374,103240.0,103230.0,0.18883179]
[1746845024864,1.3933374,103240.0,103230.0,0.36319089]
[1746845025766,1.3933374,103240.0,103230.0,0.36319429]
[1746845026959,1.3933374,103240.0,103230.0,0.39379429]
[1746845027259,1.3933374,103240.0,103230.0,0.39379624]
[1746845031172,1.3933374,103240.0,103230.0,0.21943714]
[1746845032781,1.3933374,103240.0,103230.0,0.21945412]
[1746845034477,1.3933374,103240.0,103230.0,0.21945818]
[1746845034664,1.3933374,103240.0,103230.0,0.39381728]
[1746845038275,1.3933374,103240.0,103230.0,0.39383003]
[1746845039176,1.3933374,103240.0,103230.0,0.21947093]
[1746845039978,1.3933374,103240.0,103230.0,0.21947216]
[1746845040680,1.32236985,103240.0,103230.0,0.21947216]
[1746845041078,1.32236985,103240.0,103230.0,0.39383126]
[1746845042081,1.32236985,103240.0,103230.0,0.21947216]
[1746845042980,1.32236985,103240.0,103230.0,0.21944334]
[1746845043176,1.32236985,103240.0,103230.0,0.39380244]
[1746845043583,1.3933374,103240.0,103230.0,0.39380244]
[1746845043780,1.3933374,103240.0,103230.0,0.21944334]
[1746845044172,1.32236985,103240.0,103230.0,0.21944334]
[1746845044374,1.32236985,103240.0,103230.0,0.39380244]
[1746845044673,1.14416985,103240.0,103230.0,0.39380244]
[1746845044979,1.14416985,103240.0,103230.0,0.39380289]
[1746845047682,1.14416985,103240.0,103230.0,0.21944379]
[1746845050081,1.0732023,103240.0,103230.0,0.39380289]
[1746845050284,1.14416985,103240.0,103230.0,0.39380289]
[1746845050484,1.14416985,103240.0,103230.0,0.41380289]
[1746845052987,1.14416985,103240.0,103230.0,0.23944379]
[1746845053186,1.14416985,103240.0,103230.0,0.41380289]
[1746845053891,1.14416985,103240.0,103230.0,0.41380444]
[1746845057593,1.14416985,103240.0,103230.0,0.4138037]
[1746845058603,1.17686985,103240.0,103230.0,0.4138037]
[1746845061202,1.17686985,103240.0,103230.0,0.41380026]
[1746845062904,1.17686985,103240.0,103230.0,0.41379598]
[1746845064698,1.17686985,103240.0,103230.0,0.41379364]
[1746845065100,1.23936985,103240.0,103230.0,0.41379364]
[1746845065908,1.23936985,103240.0,103230.0,0.23943454]
[1746845066417,1.23936985,103240.0,103230.0,0.23943061]
[1746845070021,1.23936985,103240.0,103230.0,0.23942953]
[1746845082327,1.23936985,103240.0,103230.0,0.23943206]
[1746845084528,1.1684023,103240.0,103230.0,0.23943206]
[1746845084735,1.23936985,103240.0,103230.0,0.23943206]
[1746845085030,1.23936985,103240.0,103230.0,0.22479471]
[1746845087831,1.1684023,103240.0,103230.0,0.39915381]
[1746845088132,1.3603374,103240.0,103230.0,0.17419471]
[1746845088515,1.5803374,103240.0,103230.0,0.17419471]
[1746845091528,1.3103374,103240.0,103230.0,0.17419471]
[1746845092431,1.3103374,103240.0,103230.0,0.34855381]
[1746845092633,1.23936985,103240.0,103230.0,0.20529471]
[1746845092928,0.7124023,103240.0,103230.0,0.75965381]
[1746845093124,0.1856023,103240.0,103230.0,0.83062136]
[1746845093324,0.1856023,103240.0,103230.0,0.95134136]
[1746845093528,0.5464023,103240.0,103230.0,0.88037381]
[1746845093729,0.1856023,103240.0,103230.0,0.88037381]
[1746845094125,0.1836023,103240.0,103230.0,0.88037381]
[1746845095535,0.1816023,103240.0,103230.0,0.88137381]
[1746845096130,0.1816023,103240.0,103230.0,0.88337381]
[1746845099830,0.5424023,103240.0,103230.0,0.88337381]
[1746845103440,0.1816023,103240.0,103230.0,0.88337381]
[1746845103738,0.5424023,103240.0,103230.0,0.88337381]
[1746845104140,0.7084023,103240.0,103230.0,0.88337381]
[1746845105139,0.5424023,103240.0,103230.0,0.88337381]
[1746845106143,0.7084023,103240.0,103230.0,0.88337381]
[1746845107642,0.7084023,103240.0,103230.0,1.03099909]
[1746845109344,0.5424023,103240.0,103230.0,1.03099909]
[1746845110445,0.5424023,103240.0,103230.0,0.88337381]
[1746845112748,0.5424023,103240.0,103230.0,0.95434136]
[1746845112749,0.00726,103240.0,103230.0,0.95434136]
[1746845113144,0.00726,103240.0,103230.0,1.13530893]
[1746845113448,0.1816023,103240.0,103230.0,1.13530893]
[1746845113848,0.1816023,103240.0,103230.0,1.13532276]
[1746845114040,0.00726,103240.0,103230.0,1.13532276]
[1746845114242,0.00726,103240.0,103230.0,1.49612276]
[1746845115252,0.00726,103240.0,103230.0,1.33012276]
[1746845115650,0.1816023,103240.0,103230.0,1.33012276]
[1746845116250,0.00726,103240.0,103230.0,1.33012276]
[1746845116752,0.00726,103240.0,103230.0,1.52644503]
[1746845117250,0.00726,103240.0,103230.0,1.69244503]
[1746845117544,0.00726,103240.0,103230.0,1.78931303]
[1746845117747,0.6222755,103260.0,103250.0,0.1743254]
[1746845117953,0.6222755,103260.0,103250.0,0.7404668]
[1746845118249,0.6222755,103260.0,103250.0,0.8342668]
[1746845118439,0.6222755,103260.0,103250.0,0.93113317]
[1746845118849,0.6242755,103260.0,103250.0,0.93113317]
[1746845119252,0.6262755,103260.0,103250.0,0.93113317]
[1746845120057,0.69724305,103260.0,103250.0,0.93113317]
[1746845120445,0.72914305,103260.0,103250.0,0.93109317]
[1746845120645,0.79484305,103260.0,103250.0,0.93109317]
[1746845120953,0.79484305,103260.0,103250.0,0.93108116]
[1746845121155,0.96084305,103260.0,103250.0,0.93108116]
[1746845124558,0.8898755,103260.0,103250.0,0.93108116]
[1746845126158,0.7238755,103260.0,103250.0,0.93108116]
[1746845129165,0.8898755,103260.0,103250.0,0.93108116]
[1746845131747,0.8898755,103260.0,103250.0,0.91611177]
[1746845131953,0.8898755,103260.0,103250.0,0.93107338]
[1746845139161,0.8898755,103260.0,103250.0,0.93108353]
[1746845142168,0.8898755,103260.0,103250.0,0.93109578]
[1746845143272,0.7238755,103260.0,103250.0,0.93109578]
[1746845144173,0.8898755,103260.0,103250.0,0.93109578]
[1746845146671,0.8898755,103260.0,103250.0,0.9311117]
[1746845148472,0.8898755,103260.0,103250.0,0.93111529]
[1746845149373,0.8241755,103260.0,103250.0,0.93111529]
[1746845150270,0.6581755,103260.0,103250.0,0.93111529]
[1746845150669,0.6262755,103260.0,103250.0,0.93111529]
[1746845151170,0.004,103260.0,103250.0,1.36288284]
[1746845151371,0.1783085,103260.0,103250.0,1.36288284]
[1746845153074,0.004,103260.0,103250.0,1.36288284]
[1746845153274,0.004,103260.0,103250.0,1.52888284]
[1746845154074,0.004,103260.0,103250.0,1.36288284]
[1746845156775,0.004,103260.0,103250.0,1.51020817]
[1746845157576,0.002,103260.0,103250.0,1.51020817]
[1746845157768,0.63097004,103270.0,103260.0,0.1743085]
[1746845157966,0.63097004,103270.0,103260.0,0.67567957]
[1746845158467,0.63097004,103270.0,103260.0,0.7725178]
[1746845158968,0.58739354,103270.0,103260.0,0.78204512]
[1746845159165,0.58739354,103270.0,103260.0,0.78304512]
[1746845159478,0.58739354,103270.0,103260.0,0.78302665]
[1746845160175,0.22659354,103270.0,103260.0,1.14382665]
[1746845160479,0.22659354,103270.0,103260.0,1.0728591]
[1746845161165,0.39259354,103270.0,103260.0,1.14382665]